fUST/lending_fUST_20240613
["ID","MTS","AMOUNT","RATE_DAILY","PERIOD"]
[329330318,1718249462547,-715.6652846,0.00018904,2]
[329330319,1718249462680,-1589.2947154,0.00018904,2]
[329330320,1718249462691,-18738.8052846,0.00019,2]
[329330321,1718249462716,-683.3362703,0.00019,2]
[329330322,1718249462729,-908.95806516,0.00019,2]
[329330323,1718249559085,1500.0,0.00021917,30]
[329330324,1718249559726,1500.0,0.00022739,30]
[329330336,1718250153357,1500.0,0.00021917,30]
[329330337,1718250153625,1500.0,0.00022739,30]
[329330339,1718250323804,1518.74519988,9.999e-05,2]
[329330342,1718250590817,-230.54901391,0.00014702,2]
[329330343,1718250590882,-194.69391489,0.00014702,2]
[329330404,1718250638086,-154.9690062,0.00015,2]
[329330405,1718250638099,-726.01780539,0.00015178,2]
[329330407,1718250638111,-281.72866704,0.00015178,2]
[329330408,1718250638122,-223.44211461,0.00015179,2]
[329330410,1718250638251,-76.55788539,0.00015179,2]
[329330411,1718250638274,-282.0,0.00015179,2]
[329330412,1718250638295,-555.47590207,0.0001518,2]
[329330485,1718250639599,-20592.22036483,0.0001518,2]
[329330487,1718250639615,-307.947486,0.0001528,2]
[329330488,1718250639632,-198.5208095,0.00015411,2]
[329330489,1718250639647,-2650.50504726,0.00015926,2]
[329330490,1718250639664,-208.96976781,0.00016436,2]
[329330492,1718250639687,-557.50845928,0.00016436,2]
[329330493,1718250639706,-195.13677025,0.00016436,2]
[329330495,1718250639729,-978.48069155,0.00016436,2]
[329330497,1718250639740,-155.08523353,0.00016436,2]
[329330498,1718250639751,-155.14986685,0.00016436,2]
[329330500,1718250639763,-524.421315,0.00016436,2]
[329330501,1718250639796,-155.16357169,0.00016436,2]
[329330502,1718250639816,-155.39218011,0.00016436,2]
[329330503,1718250639835,-777.19354777,0.00016436,2]
[329330504,1718250639846,-480.87741804,0.00016436,2]
[329330505,1718250639863,-273.25201309,0.00016436,2]
[329330506,1718250639874,-155.17313159,0.00016436,2]
[329330507,1718250639885,-554.05264735,0.00016436,2]
[329330508,1718250639899,-948.52936756,0.00016436,2]
[329330509,1718250639911,-220.01503913,0.00016436,2]
[329330510,1718250639921,-1278.4951072,0.00016436,2]
[329330511,1718250639931,-162.02423129,0.00016436,2]
[329330512,1718250639942,-159.94155477,0.00016436,2]
[329330513,1718250639961,-165.1660393,0.00016436,2]
[329330514,1718250639972,-280.26055853,0.00016437,2]
[329330515,1718250639985,-5808.25365509,0.00016437,2]
[329330516,1718250640007,-500.0,0.00016438,2]
[329330517,1718250640023,-500.0,0.00016438,2]
[329330518,1718250640036,-500.0,0.00016438,2]
[329330519,1718250640049,-500.0,0.00016438,2]
[329330520,1718250640062,-500.0,0.00016438,2]
[329330521,1718250640079,-500.0,0.00016438,2]
[329330522,1718250640092,-576.31191636,0.00016438,2]
[329330524,1718250640123,-500.0,0.00016438,2]
[329330525,1718250640150,-500.0,0.00016438,2]
[329330526,1718250640180,-500.0,0.00016438,2]
[329330527,1718250640193,-505.08374038,0.00016438,2]
[329330528,1718250640204,-500.0,0.00016438,2]
[329330529,1718250640218,-504.32518635,0.00016438,2]
[329330530,1718250640236,-504.7553571,0.00016438,2]
[329330531,1718250640257,-500.0,0.00016438,2]
[329330532,1718250640272,-500.0,0.00016438,2]
[329330533,1718250640285,-500.0,0.00016438,2]
[329330534,1718250640302,-503.50705889,0.00016438,2]
[329330535,1718250640314,-503.06029148,0.00016438,2]
[329330536,1718250640337,-500.0,0.00016438,2]
[329330537,1718250640349,-500.0,0.00016438,2]
[329330538,1718250640361,-500.0,0.00016438,2]
[329330539,1718250640380,-517.37,0.00016438,2]
[329330540,1718250640394,-502.52028851,0.00016438,2]
[329330541,1718250640405,-500.0,0.00016438,2]
[329330542,1718250640419,-504.23332441,0.00016438,2]
[329330543,1718250640432,-500.0,0.00016438,2]
[329330544,1718250640452,-500.0,0.00016438,2]
[329330545,1718250640466,-500.0,0.00016438,2]
[329330546,1718250640482,-500.0,0.00016438,2]
[329330547,1718250640494,-506.91318144,0.00016438,2]
[329330548,1718250640508,-500.0,0.00016438,2]
[329330549,1718250640528,-500.0,0.00016438,2]
[329330550,1718250640554,-500.0,0.00016438,2]
[329330551,1718250640570,-500.0,0.00016438,2]
[329330552,1718250640590,-184.56189872,0.00016438,2]
[329330553,1718250640605,-500.0,0.00016438,2]
[329330554,1718250640617,-179.85992308,0.00016438,2]
[329330555,1718250640629,-500.0,0.00016438,2]
[329330556,1718250640645,-500.0,0.00016438,2]
[329330557,1718250640670,-500.0,0.00016438,2]
[329330558,1718250640683,-500.0,0.00016438,2]
[329330559,1718250640703,-500.0,0.00016438,2]
[329330560,1718250640717,-500.0,0.00016438,2]
[329330561,1718250640754,-504.2910003,0.00016438,2]
[329330562,1718250640781,-248.35772437,0.00016438,2]
[329330563,1718250640792,-533.58581154,0.00016438,2]
[329330564,1718250640804,-500.0,0.00016438,2]
[329330565,1718250640820,-500.0,0.00016438,2]
[329330566,1718250640833,-500.0,0.00016438,2]
[329330567,1718250640853,-505.69531129,0.00016438,2]
[329330568,1718250640875,-500.0,0.00016438,2]
[329330569,1718250640889,-500.0,0.00016438,2]
[329330570,1718250640900,-500.0,0.00016438,2]
[329330571,1718250640919,-500.0,0.00016438,2]
[329330573,1718250640935,-500.0,0.00016438,2]
[329330575,1718250640950,-500.0,0.00016438,2]
[329330577,1718250640970,-504.65355803,0.00016438,2]
[329330579,1718250640983,-500.0,0.00016438,2]
[329330581,1718250641000,-500.0,0.00016438,4]
[329330583,1718250641026,-505.37617169,0.00016438,2]
[329330584,1718250641038,-500.0,0.00016438,2]
[329330585,1718250641057,-500.0,0.00016438,2]
[329330586,1718250641073,-500.0,0.00016438,2]
[329330587,1718250641092,-503.48571526,0.00016438,2]
[329330588,1718250641109,-500.0,0.00016438,2]
[329330589,1718250641124,-500.0,0.00016438,2]
[329330590,1718250641146,-500.0,0.00016438,2]
[329330591,1718250641176,-500.0,0.00016438,2]
[329330592,1718250641191,-251.63327967,0.00016438,2]
[329330594,1718250641211,-525.73533703,0.00016438,2]
[329330595,1718250641228,-506.55587308,0.00016438,2]
[329330596,1718250641261,-500.0,0.00016438,2]
[329330597,1718250641271,-500.0,0.00016438,2]
[329330598,1718250641289,-500.0,0.00016438,2]
[329330599,1718250641300,-500.0,0.00016438,2]
[329330601,1718250641311,-500.0,0.00016438,2]
[329330603,1718250641325,-505.02802939,0.00016438,2]
[329330605,1718250641340,-500.0,0.00016438,2]
[329330607,1718250641363,-500.0,0.00016438,2]
[329330610,1718250641378,-500.0,0.00016438,2]
[329330611,1718250641399,-228.92,0.00016438,2]
[329330612,1718250641418,-500.0,0.00016438,2]
[329330613,1718250641430,-500.0,0.00016438,2]
[329330614,1718250641442,-232.69851576,0.00016438,2]
[329330615,1718250641460,-500.0,0.00016438,2]
[329330616,1718250641472,-500.0,0.00016438,2]
[329330617,1718250641483,-500.0,0.00016438,2]
[329330618,1718250641498,-500.0,0.00016438,2]
[329330619,1718250641511,-500.0,0.00016438,2]
[329330620,1718250641533,-512.27824782,0.00016438,2]
[329330621,1718250641544,-500.0,0.00016438,2]
[329330622,1718250641562,-729.86,0.00016438,2]
[329330623,1718250641574,-500.0,0.00016438,2]
[329330624,1718250641585,-500.0,0.00016438,2]
[329330625,1718250641796,-500.0,0.00016438,2]
[329330626,1718250641809,-500.0,0.00016438,2]
[329330627,1718250641821,-500.0,0.00016438,2]
[329330628,1718250641833,-500.0,0.00016438,2]
[329330629,1718250641845,-502.86970428,0.00016438,2]
[329330631,1718250641864,-500.0,0.00016438,2]
[329330633,1718250641875,-231.50127947,0.00016438,2]
[329330634,1718250641888,-500.0,0.00016438,2]
[329330635,1718250641898,-500.0,0.00016438,2]
[329330636,1718250641912,-500.0,0.00016438,2]
[329330637,1718250641923,-506.21171746,0.00016438,2]
[329330638,1718250641934,-500.0,0.00016438,2]
[329330639,1718250641949,-500.0,0.00016438,2]
[329330640,1718250641962,-500.0,0.00016438,2]
[329330641,1718250642019,-500.0,0.00016438,2]
[329330642,1718250642037,-500.0,0.00016438,2]
[329330643,1718250642068,-500.0,0.00016438,2]
[329330644,1718250642082,-500.0,0.00016438,2]
[329330647,1718250642101,-151.82228545,0.00016438,2]
[329330648,1718250642112,-500.0,0.00016438,2]
[329330650,1718250642123,-472.77300943,0.00016438,2]
[329330652,1718250642137,-500.0,0.00016438,2]
[329330654,1718250642153,-1510.11,0.00016438,2]
[329330656,1718250642170,-500.0,0.00016438,2]
[329330658,1718250642187,-500.0,0.00016438,2]
[329330660,1718250642197,-500.0,0.00016438,2]
[329330663,1718250642213,-500.0,0.00016438,2]
[329330665,1718250642224,-1199.06,0.00016438,2]
[329330667,1718250642249,-500.0,0.00016438,2]
[329330669,1718250642273,-1319.01,0.00016438,2]
[329330671,1718250642302,-500.0,0.00016438,2]
[329330673,1718250642328,-500.0,0.00016438,2]
[329330675,1718250642359,-500.0,0.00016438,2]
[329330677,1718250642384,-500.0,0.00016438,2]
[329330679,1718250642399,-500.0,0.00016438,2]
[329330681,1718250642411,-500.0,0.00016438,2]
[329330683,1718250642423,-500.0,0.00016438,2]
[329330685,1718250642439,-500.0,0.00016438,2]
[329330687,1718250642451,-500.0,0.00016438,2]
[329330689,1718250642465,-500.0,0.00016438,2]
[329330691,1718250642481,-901.88,0.00016438,2]
[329330693,1718250642494,-500.0,0.00016438,2]
[329330695,1718250642514,-504.57776186,0.00016438,2]
[329330697,1718250642529,-500.0,0.00016438,2]
[329330700,1718250642541,-500.0,0.00016438,2]
[329330702,1718250642555,-500.0,0.00016438,2]
[329330704,1718250642567,-500.0,0.00016438,2]
[329330705,1718250642580,-693.25,0.00016438,2]
[329330708,1718250642598,-500.0,0.00016438,2]
[329330710,1718250642613,-500.0,0.00016438,2]
[329330712,1718250642630,-585.75006058,0.00016438,2]
[329330713,1718250642650,-500.0,0.00016438,2]
[329330715,1718250642670,-533.82895435,0.00016438,2]
[329330717,1718250642682,-500.0,0.00016438,2]
[329330719,1718250642694,-506.90837901,0.00016438,2]
[329330722,1718250642719,-500.0,0.00016438,2]
[329330723,1718250642735,-500.0,0.00016438,2]
[329330726,1718250642748,-507.69322509,0.00016438,2]
[329330728,1718250642761,-1047.73,0.00016438,2]
[329330729,1718250642798,-1803.99,0.00016438,2]
[329330731,1718250642811,-500.0,0.00016438,2]
[329330733,1718250642822,-500.0,0.00016438,2]
[329330735,1718250642838,-500.0,0.00016438,2]
[329330738,1718250642853,-500.0,0.00016438,2]
[329330740,1718250642865,-503.72942643,0.00016438,2]
[329330742,1718250642876,-500.0,0.00016438,2]
[329330744,1718250642889,-500.0,0.00016438,2]
[329330746,1718250642902,-500.0,0.00016438,2]
[329330748,1718250642919,-500.0,0.00016438,2]
[329330750,1718250642930,-3380.12,0.00016438,2]
[329330752,1718250642940,-500.0,0.00016438,2]
[329330754,1718250642952,-500.0,0.00016438,2]
[329330755,1718250642965,-529.77,0.00016438,2]
[329330757,1718250642977,-500.0,0.00016438,2]
[329330760,1718250642990,-500.0,0.00016438,2]
[329330762,1718250643002,-500.0,0.00016438,2]
[329330764,1718250643017,-5235.08,0.00016438,2]
[329330766,1718250643029,-500.0,0.00016438,2]
[329330768,1718250643041,-500.0,0.00016438,2]
[329330770,1718250643052,-500.0,0.00016438,2]
[329330772,1718250643066,-500.0,0.00016438,2]
[329330774,1718250643083,-4565.19,0.00016438,2]
[329330775,1718250643101,-1384.15,0.00016438,2]
[329330777,1718250643116,-500.0,0.00016438,2]
[329330779,1718250643128,-500.0,0.00016438,2]
[329330781,1718250643140,-500.0,0.00016438,2]
[329330783,1718250643153,-1465.76,0.00016438,2]
[329330785,1718250643167,-647.73,0.00016438,2]
[329330788,1718250643181,-500.0,0.00016438,2]
[329330789,1718250643195,-683.54,0.00016438,2]
[329330791,1718250643207,-501.91656576,0.00016438,2]
[329330794,1718250643241,-518.17,0.00016438,2]
[329330796,1718250643255,-500.0,0.00016438,2]
[329330799,1718250643271,-500.0,0.00016438,2]
[329330801,1718250643295,-500.0,0.00016438,2]
[329330803,1718250643319,-500.0,0.00016438,2]
[329330805,1718250643331,-500.0,0.00016438,2]
[329330807,1718250643356,-500.0,0.00016438,2]
[329330810,1718250643374,-500.0,0.00016438,2]
[329330812,1718250643402,-2063.19,0.00016438,2]
[329330815,1718250643435,-500.0,0.00016438,2]
[329330816,1718250643450,-500.0,0.00016438,2]
[329330818,1718250643473,-500.0,0.00016438,2]
[329330820,1718250643497,-500.0,0.00016438,2]
[329330823,1718250643510,-647.92366734,0.00016611,2]
[329330824,1718250643536,-420.0,0.00016697,2]
[329330827,1718250643568,-500.0,0.00016711,2]
[329330830,1718250643594,-500.0,0.00016711,2]
[329330832,1718250643621,-500.0,0.00016711,2]
[329330834,1718250643648,-500.0,0.00016711,2]
[329330836,1718250643671,-520.04913974,0.00016712,2]
[329330838,1718250643690,-500.0,0.00016712,2]
[329330840,1718250643703,-500.0,0.00016712,2]
[329330843,1718250643726,-500.0,0.00016712,2]
[329330845,1718250643740,-500.0,0.00016712,2]
[329330847,1718250643752,-500.0,0.00016712,2]
[329330848,1718250643777,-500.0,0.00016712,2]
[329330850,1718250643795,-500.0,0.00016712,2]
[329330852,1718250643811,-500.0,0.00016712,2]
[329330854,1718250643829,-517.37,0.00016712,2]
[329330857,1718250643844,-500.0,0.00016712,2]
[329330859,1718250643869,-500.0,0.00016712,2]
[329330861,1718250643894,-500.0,0.00016712,2]
[329330863,1718250643917,-500.0,0.00016712,2]
[329330867,1718250643948,-500.0,0.00016712,2]
[329330869,1718250643963,-500.0,0.00016712,2]
[329330870,1718250643975,-500.0,0.00016712,2]
[329330873,1718250643996,-500.0,0.00016712,2]
[329330875,1718250644010,-500.0,0.00016712,2]
[329330877,1718250644023,-500.0,0.00016712,2]
[329330879,1718250644044,-500.0,0.00016712,2]
[329330881,1718250644069,-500.0,0.00016712,2]
[329330883,1718250644082,-520.22200289,0.00016712,2]
[329330884,1718250644092,-172.70336539,0.00016712,2]
[329330885,1718250644105,-500.0,0.00016712,2]
[329330886,1718250644118,-500.0,0.00016712,2]
[329330887,1718250644129,-500.0,0.00016712,2]
[329330888,1718250644141,-500.0,0.00016712,2]
[329330889,1718250644153,-500.0,0.00016712,4]
[329330890,1718250644165,-500.0,0.00016712,2]
[329330891,1718250644175,-500.0,0.00016712,2]
[329330892,1718250644186,-500.0,0.00016712,2]
[329330893,1718250644197,-500.0,0.00016712,2]
[329330894,1718250644210,-512.34335597,0.00016712,2]
[329330895,1718250644223,-500.0,0.00016712,2]
[329330896,1718250644237,-500.0,0.00016712,2]
[329330897,1718250644258,-500.0,0.00016712,2]
[329330898,1718250644276,-500.0,0.00016712,2]
[329330899,1718250644289,-500.0,0.00016712,2]
[329330900,1718250644301,-353.05285413,0.00016712,2]
[329330901,1718250644312,-151.03514237,0.00016712,2]
[329330902,1718250644325,-729.86,0.00016712,2]
[329330903,1718250644336,-500.0,0.00016712,2]
[329330904,1718250644348,-500.0,0.00016712,2]
[329330905,1718250644361,-500.0,0.00016712,2]
[329330906,1718250644374,-500.0,0.00016712,2]
[329330907,1718250644387,-500.0,0.00016712,2]
[329330908,1718250644398,-500.0,0.00016712,2]
[329330909,1718250644410,-500.0,0.00016712,2]
[329330910,1718250644422,-500.0,0.00016712,2]
[329330911,1718250644432,-500.0,0.00016712,2]
[329330912,1718250644443,-500.0,0.00016712,2]
[329330913,1718250644454,-500.0,0.00016712,2]
[329330914,1718250644464,-243.35787975,0.00016712,2]
[329330915,1718250644474,-500.0,0.00016712,2]
[329330916,1718250644485,-1510.11,0.00016712,2]
[329330917,1718250644501,-500.0,0.00016712,2]
[329330918,1718250644511,-500.0,0.00016712,2]
[329330919,1718250644522,-1199.06,0.00016712,2]
[329330920,1718250644533,-500.0,0.00016712,2]
[329330921,1718250644543,-1319.01,0.00016712,2]
[329330922,1718250644555,-440.14971195,0.00016712,2]
[329330923,1718250644565,-500.0,0.00016712,2]
[329330924,1718250644575,-504.36818227,0.00016712,2]
[329330925,1718250644584,-507.80413817,0.00016712,2]
[329330926,1718250644594,-500.0,0.00016712,2]
[329330927,1718250644604,-500.0,0.00016712,2]
[329330928,1718250644614,-453.90444358,0.00016712,2]
[329330929,1718250644624,-901.88,0.00016712,2]
[329330930,1718250644634,-500.0,0.00016712,2]
[329330931,1718250644645,-510.93188732,0.00016712,2]
[329330932,1718250644656,-500.0,0.00016712,2]
[329330933,1718250644667,-505.76896261,0.00016712,2]
[329330934,1718250644678,-693.25,0.00016712,2]
[329330935,1718250644689,-500.0,0.00016712,2]
[329330936,1718250644701,-500.0,0.00016712,2]
[329330937,1718250644712,-405.9853683,0.00016712,2]
[329330938,1718250644727,-500.0,0.00016712,2]
[329330939,1718250644738,-1047.73,0.00016712,2]
[329330940,1718250644749,-1803.99,0.00016712,2]
[329330941,1718250644762,-500.0,0.00016712,2]
[329330942,1718250644793,-500.0,0.00016712,2]
[329330943,1718250644807,-500.0,0.00016712,2]
[329330944,1718250644817,-500.0,0.00016712,2]
[329330945,1718250644830,-188.56937721,0.00016712,2]
[329330946,1718250644841,-3380.12,0.00016712,2]
[329330947,1718250644852,-521.64882826,0.00016712,2]
[329330948,1718250644864,-529.77,0.00016712,2]
[329330949,1718250644874,-500.0,0.00016712,2]
[329330950,1718250644886,-500.0,0.00016712,2]
[329330951,1718250644900,-5235.08,0.00016712,2]
[329330952,1718250644914,-500.0,0.00016712,2]
[329330953,1718250644926,-500.0,0.00016712,2]
[329330954,1718250644938,-500.0,0.00016712,2]
[329330955,1718250644949,-4565.19,0.00016712,2]
[329330956,1718250644962,-1384.15,0.00016712,2]
[329330957,1718250644974,-500.0,0.00016712,2]
[329330958,1718250644989,-500.0,0.00016712,2]
[329330959,1718250645003,-1465.76,0.00016712,2]
[329330960,1718250645016,-647.73,0.00016712,2]
[329330961,1718250645029,-500.0,0.00016712,2]
[329330962,1718250645040,-518.17,0.00016712,2]
[329330963,1718250645063,-683.54,0.00016712,2]
[329330964,1718250645076,-500.0,0.00016712,2]
[329330965,1718250645088,-500.0,0.00016712,2]
[329330966,1718250645110,-527.95727625,0.00016712,2]
[329330967,1718250645124,-500.0,0.00016712,2]
[329330968,1718250645136,-500.0,0.00016712,2]
[329330969,1718250645150,-2063.19,0.00016712,2]
[329330970,1718250645174,-246.32581133,0.00016712,2]
[329330971,1718250645192,-500.0,0.00016712,2]
[329330972,1718250645209,-500.0,0.00016712,2]
[329330973,1718250645233,-153.0,0.00016908,2]
[329330974,1718250645254,-153.0,0.00016908,2]
[329330975,1718250645274,-153.0,0.00016908,2]
[329330976,1718250645296,-153.0,0.00016908,2]
[329330977,1718250645318,-153.0,0.00016908,2]
[329330978,1718250645345,-153.0,0.00016908,2]
[329330979,1718250645359,-153.0,0.00016908,2]
[329330980,1718250645372,-153.0,0.00016908,2]
[329330981,1718250645384,-153.0,0.00016908,2]
[329330982,1718250645398,-153.0,0.00016908,2]
[329330983,1718250645410,-153.0,0.00016908,2]
[329330984,1718250645422,-153.0,0.00016908,2]
[329330985,1718250645433,-153.0,0.00016908,2]
[329330986,1718250645444,-153.0,0.00016908,2]
[329330987,1718250645454,-153.0,0.00016908,2]
[329330988,1718250645465,-153.0,0.00016908,2]
[329330989,1718250645481,-153.0,0.00016908,2]
[329330990,1718250645496,-153.0,0.00016908,2]
[329330991,1718250645510,-153.0,0.00016908,2]
[329330992,1718250645522,-153.0,0.00016908,2]
[329330993,1718250645533,-500.0,0.00016985,2]
[329330994,1718250645544,-500.0,0.00016985,2]
[329330995,1718250645555,-500.0,0.00016986,2]
[329330996,1718250645567,-500.0,0.00016986,2]
[329330997,1718250645582,-500.0,0.00016986,2]
[329330998,1718250645602,-508.70644209,0.00016986,2]
[329330999,1718250645613,-517.37,0.00016986,2]
[329331000,1718250645624,-500.0,0.00016986,2]
[329331001,1718250645634,-500.0,0.00016986,2]
[329331002,1718250645649,-500.0,0.00016986,2]
[329331003,1718250645661,-500.0,0.00016986,2]
[329331004,1718250645672,-500.0,0.00016986,2]
[329331005,1718250645683,-500.0,0.00016986,2]
[329331007,1718250645694,-500.0,0.00016986,2]
[329331009,1718250645705,-500.0,0.00016986,2]
[329331011,1718250645720,-500.0,0.00016986,2]
[329331013,1718250645732,-510.3445727,0.00016986,2]
[329331015,1718250645744,-512.33553468,0.00016986,2]
[329331017,1718250645755,-500.0,0.00016986,2]
[329331019,1718250645790,-500.0,0.00016986,2]
[329331021,1718250645805,-500.0,0.00016986,2]
[329331023,1718250645817,-500.0,0.00016986,2]
[329331025,1718250645828,-729.86,0.00016986,2]
[329331027,1718250645839,-500.0,0.00016986,2]
[329331029,1718250645851,-457.5668634,0.00016986,2]
[329331030,1718250645862,-500.0,0.00016986,2]
[329331032,1718250645873,-500.0,0.00016986,2]
[329331034,1718250645883,-500.0,0.00016986,2]
[329331036,1718250645894,-500.0,0.00016986,2]
[329331037,1718250645905,-500.0,0.00016986,2]
[329331038,1718250645917,-1510.11,0.00016986,2]
[329331039,1718250645928,-519.70281015,0.00016986,2]
[329331040,1718250645938,-1199.06,0.00016986,2]
[329331041,1718250645949,-500.0,0.00016986,2]
[329331042,1718250645960,-1319.01,0.00016986,2]
[329331043,1718250645971,-500.0,0.00016986,2]
[329331044,1718250645982,-500.0,0.00016986,2]
[329331045,1718250645995,-901.88,0.00016986,2]
[329331046,1718250646007,-500.0,0.00016986,2]
[329331047,1718250646020,-467.97452411,0.00016986,2]
[329331048,1718250646031,-693.25,0.00016986,2]
[329331049,1718250646042,-500.0,0.00016986,2]
[329331050,1718250646052,-500.0,0.00016986,2]
[329331051,1718250646063,-1047.73,0.00016986,2]
[329331052,1718250646074,-1803.99,0.00016986,2]
[329331053,1718250646084,-500.0,0.00016986,2]
[329331054,1718250646095,-630.13861783,0.00016986,2]
[329331055,1718250646106,-3380.12,0.00016986,2]
[329331056,1718250646118,-529.77,0.00016986,2]
[329331057,1718250646130,-500.0,0.00016986,2]
[329331058,1718250646142,-500.0,0.00016986,2]
[329331059,1718250646153,-5235.08,0.00016986,2]
[329331060,1718250646165,-301.75557073,0.00016986,2]
[329331061,1718250646177,-511.07454243,0.00016986,2]
[329331062,1718250646188,-4565.19,0.00016986,2]
[329331063,1718250646202,-1384.15,0.00016986,2]
[329331064,1718250646214,-500.0,0.00016986,2]
[329331065,1718250646227,-1465.76,0.00016986,2]
[329331066,1718250646238,-647.73,0.00016986,2]
[329331067,1718250646249,-500.0,0.00016986,2]
[329331068,1718250646260,-518.17,0.00016986,2]
[329331069,1718250646272,-683.54,0.00016986,2]
[329331070,1718250646284,-500.0,0.00016986,2]
[329331071,1718250646296,-500.0,0.00016986,2]
[329331072,1718250646307,-516.64469479,0.00016986,2]
[329331073,1718250646318,-2063.19,0.00016986,2]
[329331074,1718250646329,-500.0,0.00016986,2]
[329331075,1718250646339,-500.0,0.00016986,2]
[329331076,1718250646350,-500.0,0.00016999,2]
[329331077,1718250646361,-500.0,0.00016999,2]
[329331078,1718250646373,-500.0,0.00016999,2]
[329331079,1718250646384,-500.0,0.00016999,2]
[329331080,1718250646396,-500.0,0.00016999,2]
[329331081,1718250646407,-296.17395839,0.00016999,2]
[329331082,1718250646419,-174726.13708746,0.00017,2]
[329331083,1718250646544,-151.0,0.00017,2]
[329331084,1718250646555,-152.157753,0.00017,2]
[329331085,1718250646566,-260.788678,0.00017,2]
[329331086,1718250646576,-151.0,0.00017,2]
[329331087,1718250646587,-151.0,0.00017,2]
[329331088,1718250646599,-151.0,0.00017,2]
[329331089,1718250646609,-151.0,0.00017,2]
[329331090,1718250646620,-151.0,0.00017,2]
[329331091,1718250646630,-151.0,0.00017,2]
[329331092,1718250646641,-264.605845,0.00017,2]
[329331093,1718250646652,-234.213191,0.00017,2]
[329331094,1718250646664,-234.213191,0.00017,2]
[329331095,1718250646674,-280.66097,0.00017,2]
[329331096,1718250646685,-280.66097,0.00017,2]
[329331097,1718250646696,-151.0,0.00017,2]
[329331098,1718250646707,-647.92366731,0.00017091,2]
[329331099,1718250646720,-500.0,0.00017259,2]
[329331100,1718250646731,-500.0,0.0001726,2]
[329331101,1718250646741,-517.37,0.0001726,2]
[329331102,1718250646752,-500.0,0.0001726,2]
[329331103,1718250646762,-500.0,0.0001726,2]
[329331104,1718250646794,-500.0,0.0001726,2]
[329331105,1718250646805,-500.0,0.0001726,2]
[329331106,1718250646815,-203.46704331,0.0001726,2]
[329331107,1718250646826,-500.0,0.0001726,2]
[329331108,1718250646836,-500.0,0.0001726,2]
[329331109,1718250646846,-552.19818538,0.0001726,2]
[329331110,1718250646857,-500.0,0.0001726,2]
[329331111,1718250646867,-500.0,0.0001726,2]
[329331112,1718250646878,-729.86,0.0001726,2]
[329331113,1718250646889,-510.12029792,0.0001726,2]
[329331114,1718250646900,-500.0,0.0001726,2]
[329331115,1718250646910,-526.36112683,0.0001726,2]
[329331116,1718250646922,-500.0,0.0001726,2]
[329331117,1718250646932,-1510.11,0.0001726,2]
[329331118,1718250646942,-500.0,0.0001726,2]
[329331119,1718250646954,-1199.06,0.0001726,2]
[329331120,1718250646965,-1319.01,0.0001726,2]
[329331121,1718250646978,-500.0,0.0001726,2]
[329331122,1718250646988,-500.0,0.0001726,2]
[329331123,1718250646999,-901.88,0.0001726,2]
[329331124,1718250647010,-500.0,0.0001726,2]
[329331125,1718250647022,-693.25,0.0001726,2]